[Event "Betsys MČR v online bleskovém šachu 2021"]
[Site "Chess.com"]
[Date "2021.04.17"]
[Round "5"]
[White "vasekpaulus"]
[Black "Paulz64"]
[Result "0-1"]
[WhiteElo "2067"]
[BlackElo "2493"]
[TimeControl "180+1"]
[EndTime "9:47:52 PDT"]
[Termination "Uživatel Paulz64 zvítězil na čas"]

1. e4 {[%clk 0:03:00.9]} 1... c5 {[%clk 0:02:59.8]} 2. Nf3 {[%clk 0:03:00.5]}
2... e6 {[%clk 0:03:00]} 3. d4 {[%clk 0:02:59.3]} 3... cxd4 {[%clk 0:03:00.6]}
4. Nxd4 {[%clk 0:02:59.6]} 4... a6 {[%clk 0:03:01.2]} 5. Nc3 {[%clk 0:02:59.8]}
5... Qc7 {[%clk 0:03:01.5]} 6. a3 {[%clk 0:02:54.5]} 6... Nf6 {[%clk 0:02:55.5]}
7. Be3 {[%clk 0:02:51.5]} 7... b5 {[%clk 0:02:45.1]} 8. Be2 {[%clk 0:02:47.4]}
8... Bb7 {[%clk 0:02:45]} 9. Bf3 {[%clk 0:02:45.4]} 9... d6 {[%clk 0:02:37.1]}
10. O-O {[%clk 0:02:45]} 10... Be7 {[%clk 0:02:35]} 11. g3 {[%clk 0:02:38.8]}
11... O-O {[%clk 0:02:26.3]} 12. Qd2 {[%clk 0:02:37.6]} 12... Nbd7 {[%clk
0:02:25.9]} 13. Bg2 {[%clk 0:02:36.6]} 13... Ne5 {[%clk 0:02:23.9]} 14. b3
{[%clk 0:02:19.9]} 14... Rac8 {[%clk 0:02:15]} 15. Nce2 {[%clk 0:02:06.1]} 15...
Nxe4 {[%clk 0:02:08.6]} 16. Qd1 {[%clk 0:01:41.1]} 16... Bf6 {[%clk 0:01:48.8]}
17. Rc1 {[%clk 0:01:15.6]} 17... Ng4 {[%clk 0:01:40.1]} 18. Qd3 {[%clk
0:01:02.9]} 18... Nc5 {[%clk 0:01:22]} 19. Qd2 {[%clk 0:00:59]} 19... Bxg2
{[%clk 0:01:17.6]} 20. Kxg2 {[%clk 0:00:58.9]} 20... Qb7+ {[%clk 0:01:18]} 21.
f3 {[%clk 0:00:57.4]} 21... Nxe3+ {[%clk 0:00:58.1]} 22. Qxe3 {[%clk 0:00:57]}
22... g6 {[%clk 0:00:58.6]} 23. Rfd1 {[%clk 0:00:55.5]} 23... e5 {[%clk
0:00:52.4]} 24. Nf5 {[%clk 0:00:45]} 24... gxf5 {[%clk 0:00:49.5]} 25. Rxd6
{[%clk 0:00:44.6]} 25... Ne6 {[%clk 0:00:34.6]} 26. Qh6 {[%clk 0:00:38.6]} 26...
Bg7 {[%clk 0:00:32.5]} 27. Qh5 {[%clk 0:00:37.9]} 27... Qe7 {[%clk 0:00:25]} 28.
Rxa6 {[%clk 0:00:34.5]} 28... Nc5 {[%clk 0:00:19.9]} 29. Ra5 {[%clk 0:00:25]}
29... Qd7 {[%clk 0:00:20.1]} 30. Qg5 {[%clk 0:00:21.8]} 30... h6 {[%clk
0:00:15.8]} 31. Qe3 {[%clk 0:00:20.6]} 31... e4 {[%clk 0:00:16.2]} 32. b4 {[%clk
0:00:18.7]} 32... exf3+ {[%clk 0:00:15.2]} 33. Qxf3 {[%clk 0:00:18.1]} 33... Ne4
{[%clk 0:00:15.4]} 34. Rf1 {[%clk 0:00:14.6]} 34... Rxc2 {[%clk 0:00:14.4]} 35.
Kg1 {[%clk 0:00:12.2]} 35... Nd2 {[%clk 0:00:13.8]} 36. Qxf5 {[%clk 0:00:10.8]}
36... Qxf5 {[%clk 0:00:13.9]} 37. Rxf5 {[%clk 0:00:10.6]} 37... Nc4 {[%clk
0:00:14.6]} 38. Raxb5 {[%clk 0:00:07.3]} 38... Rxe2 {[%clk 0:00:13.8]} 39. Rbc5
{[%clk 0:00:07.2]} 39... Ne3 {[%clk 0:00:13.8]} 40. Rf3 {[%clk 0:00:06.9]} 40...
Bd4 {[%clk 0:00:13.4]} 0-1

[Event "Betsys MČR v online bleskovém šachu 2021"]
[Site "Chess.com"]
[Date "2021.04.17"]
[Round "5"]
[White "iDarkTraveler"]
[Black "Staci_fiknout_Navara_Plat"]
[Result "0-1"]
[WhiteElo "1951"]
[BlackElo "1941"]
[TimeControl "180+1"]
[EndTime "9:47:53 PDT"]
[Termination "Uživatel Staci_fiknout_Navara_Plat zvítězil na čas"]

1. e4 {[%clk 0:03:00.9]} 1... d5 {[%clk 0:02:59.9]} 2. exd5 {[%clk 0:02:59.2]}
2... Nf6 {[%clk 0:03:00.2]} 3. c4 {[%clk 0:02:58]} 3... c6 {[%clk 0:02:59.6]} 4.
d4 {[%clk 0:02:54.1]} 4... cxd5 {[%clk 0:02:59.3]} 5. c5 {[%clk 0:02:53.7]} 5...
b6 {[%clk 0:02:49]} 6. Bb5+ {[%clk 0:02:47.4]} 6... Bd7 {[%clk 0:02:48.6]} 7.
Qa4 {[%clk 0:02:34.6]} 7... Bxb5 {[%clk 0:02:14.1]} 8. Qxb5+ {[%clk 0:02:32.4]}
8... Qd7 {[%clk 0:02:14.6]} 9. Qxd7+ {[%clk 0:02:24.8]} 9... Nfxd7 {[%clk
0:02:15.5]} 10. cxb6 {[%clk 0:02:23.8]} 10... axb6 {[%clk 0:02:10.4]} 11. Nc3
{[%clk 0:02:22.6]} 11... e6 {[%clk 0:02:09.3]} 12. Nf3 {[%clk 0:02:11.9]} 12...
Bb4 {[%clk 0:02:07.2]} 13. Bd2 {[%clk 0:02:11.5]} 13... O-O {[%clk 0:02:06.5]}
14. a3 {[%clk 0:02:04.5]} 14... Be7 {[%clk 0:02:03.8]} 15. Ke2 {[%clk
0:01:54.7]} 15... Nc6 {[%clk 0:01:59.8]} 16. Kd3 {[%clk 0:01:54.3]} 16... Rfc8
{[%clk 0:01:53.9]} 17. Rac1 {[%clk 0:01:52.9]} 17... Na5 {[%clk 0:01:52.7]} 18.
Rc2 {[%clk 0:01:13.1]} 18... g6 {[%clk 0:00:56.6]} 19. Re1 {[%clk 0:01:12.3]}
19... Bd6 {[%clk 0:00:52]} 20. g3 {[%clk 0:01:05.7]} 20... Bf8 {[%clk
0:00:45.8]} 21. Bf4 {[%clk 0:00:59]} 21... Bg7 {[%clk 0:00:43.8]} 22. Be5 {[%clk
0:00:56.5]} 22... Rc6 {[%clk 0:00:37.5]} 23. Bxg7 {[%clk 0:00:52.8]} 23... Kxg7
{[%clk 0:00:38.4]} 24. Nb5 {[%clk 0:00:45.2]} 24... Rxc2 {[%clk 0:00:37.7]} 25.
Kxc2 {[%clk 0:00:45.5]} 25... Rc8+ {[%clk 0:00:38.2]} 26. Kd3 {[%clk 0:00:39.9]}
26... Nf6 {[%clk 0:00:36.8]} 27. Ne5 {[%clk 0:00:37.6]} 27... Ne4 {[%clk
0:00:35.6]} 28. f3 {[%clk 0:00:32.9]} 28... Nf6 {[%clk 0:00:34]} 29. Nd6 {[%clk
0:00:33]} 29... Rc7 {[%clk 0:00:26.7]} 30. Ng4 {[%clk 0:00:29]} 30... Re7 {[%clk
0:00:16.4]} 31. Rc1 {[%clk 0:00:20.5]} 31... Nxg4 {[%clk 0:00:16.3]} 32. fxg4
{[%clk 0:00:21]} 32... Rd7 {[%clk 0:00:16.4]} 33. Nc8 {[%clk 0:00:20.1]} 33...
Nc4 {[%clk 0:00:14.9]} 34. b3 {[%clk 0:00:18.6]} 34... Nxa3 {[%clk 0:00:14.5]}
35. Nxb6 {[%clk 0:00:17.7]} 35... Rb7 {[%clk 0:00:15]} 36. Nc8 {[%clk
0:00:16.2]} 36... Rxb3+ {[%clk 0:00:13.7]} 37. Ke2 {[%clk 0:00:15.6]} 37... Nc4
{[%clk 0:00:13]} 38. Rc2 {[%clk 0:00:13]} 38... Rb2 {[%clk 0:00:10.9]} 39. Rxb2
{[%clk 0:00:10.6]} 39... Nxb2 {[%clk 0:00:11.8]} 40. Nd6 {[%clk 0:00:10.6]}
40... Nc4 {[%clk 0:00:09.2]} 41. g5 {[%clk 0:00:08.9]} 41... Nxd6 {[%clk
0:00:08.5]} 0-1

[Event "Betsys MČR v online bleskovém šachu 2021"]
[Site "Chess.com"]
[Date "2021.04.17"]
[Round "5"]
[White "marosino"]
[Black "Mikkes33"]
[Result "1/2-1/2"]
[WhiteElo "1580"]
[BlackElo "1328"]
[TimeControl "180+1"]
[EndTime "9:47:53 PDT"]
[Termination "Remíza patem"]

1. b3 {[%clk 0:03:00.9]} 1... e5 {[%clk 0:02:56.8]} 2. Bb2 {[%clk 0:03:00.1]}
2... Nc6 {[%clk 0:02:56]} 3. g3 {[%clk 0:03:00.1]} 3... d5 {[%clk 0:02:55.2]} 4.
Bg2 {[%clk 0:02:59.9]} 4... Be6 {[%clk 0:02:51.9]} 5. e3 {[%clk 0:02:59.6]} 5...
Nf6 {[%clk 0:02:45.9]} 6. Ne2 {[%clk 0:02:58.8]} 6... Be7 {[%clk 0:02:45]} 7.
O-O {[%clk 0:02:58.2]} 7... O-O {[%clk 0:02:44.6]} 8. d4 {[%clk 0:02:57.2]} 8...
e4 {[%clk 0:02:38.5]} 9. Nd2 {[%clk 0:02:56.7]} 9... a6 {[%clk 0:02:34.3]} 10.
c4 {[%clk 0:02:56.2]} 10... b5 {[%clk 0:02:16.9]} 11. cxd5 {[%clk 0:02:53.3]}
11... Bxd5 {[%clk 0:02:14.7]} 12. Nc3 {[%clk 0:02:51.6]} 12... Nb4 {[%clk
0:02:02.2]} 13. Ncxe4 {[%clk 0:02:39.7]} 13... Nxe4 {[%clk 0:01:56.3]} 14. Nxe4
{[%clk 0:02:33.1]} 14... f5 {[%clk 0:01:39.3]} 15. Nc5 {[%clk 0:02:28.5]} 15...
Bxg2 {[%clk 0:01:35.9]} 16. Kxg2 {[%clk 0:02:26.9]} 16... Qd5+ {[%clk
0:01:31.4]} 17. Kg1 {[%clk 0:02:24.3]} 17... Bxc5 {[%clk 0:01:30.4]} 18. dxc5
{[%clk 0:02:24]} 18... Qxc5 {[%clk 0:01:28]} 19. Qd4 {[%clk 0:02:16.6]} 19...
Qxd4 {[%clk 0:01:25.7]} 20. Bxd4 {[%clk 0:02:11.1]} 20... Nc2 {[%clk 0:01:23.4]}
21. Rad1 {[%clk 0:02:09.7]} 21... Nxd4 {[%clk 0:01:22.3]} 22. Rxd4 {[%clk
0:02:04.6]} 22... c5 {[%clk 0:01:21.6]} 23. Rd5 {[%clk 0:02:02.2]} 23... Rac8
{[%clk 0:01:15.6]} 24. Rc1 {[%clk 0:02:00.8]} 24... c4 {[%clk 0:01:14.4]} 25.
bxc4 {[%clk 0:02:00.5]} 25... bxc4 {[%clk 0:01:13.8]} 26. Rc3 {[%clk 0:01:59.3]}
26... Rf6 {[%clk 0:01:10.1]} 27. Rd4 {[%clk 0:01:58.2]} 27... Rfc6 {[%clk
0:01:08.1]} 28. Kg2 {[%clk 0:01:56]} 28... g6 {[%clk 0:01:06.9]} 29. Kf3 {[%clk
0:01:55.6]} 29... Kf8 {[%clk 0:01:01.8]} 30. h4 {[%clk 0:01:55]} 30... Ke7
{[%clk 0:01:00.5]} 31. Kf4 {[%clk 0:01:54.7]} 31... h6 {[%clk 0:00:57]} 32. Rd5
{[%clk 0:01:48.3]} 32... Ke6 {[%clk 0:00:52.9]} 33. Re5+ {[%clk 0:01:47.7]}
33... Kf6 {[%clk 0:00:49.9]} 34. Rd5 {[%clk 0:01:44.8]} 34... g5+ {[%clk
0:00:43.7]} 35. hxg5+ {[%clk 0:01:44.5]} 35... hxg5+ {[%clk 0:00:42.8]} 36. Kf3
{[%clk 0:01:43.7]} 36... Ke6 {[%clk 0:00:41.3]} 37. Ra5 {[%clk 0:01:40.9]} 37...
Rd8 {[%clk 0:00:35]} 38. a4 {[%clk 0:01:39]} 38... Rd5 {[%clk 0:00:29.4]} 39.
Rxd5 {[%clk 0:01:32.8]} 39... Kxd5 {[%clk 0:00:29.1]} 40. g4 {[%clk 0:01:31.8]}
40... fxg4+ {[%clk 0:00:24.9]} 41. Kxg4 {[%clk 0:01:31.7]} 41... Rf6 {[%clk
0:00:23.5]} 42. f4 {[%clk 0:01:27]} 42... gxf4 {[%clk 0:00:22.1]} 43. exf4
{[%clk 0:01:26.5]} 43... Kd4 {[%clk 0:00:22.1]} 44. Rc1 {[%clk 0:01:25.7]} 44...
c3 {[%clk 0:00:20.4]} 45. Kg5 {[%clk 0:01:25.4]} 45... Rf8 {[%clk 0:00:19.1]}
46. f5 {[%clk 0:01:18.4]} 46... Kd3 {[%clk 0:00:18.4]} 47. f6 {[%clk 0:01:14.9]}
47... Kd2 {[%clk 0:00:18]} 48. Rf1 {[%clk 0:01:12.3]} 48... c2 {[%clk
0:00:13.8]} 49. Rf2+ {[%clk 0:01:09.8]} 49... Kd1 {[%clk 0:00:10.7]} 50. Rf1+
{[%clk 0:01:09.7]} 50... Ke2 {[%clk 0:00:09.8]} 51. Rc1 {[%clk 0:01:08.8]} 51...
Kd2 {[%clk 0:00:09.4]} 52. Rf1 {[%clk 0:01:04.6]} 52... c1=Q {[%clk 0:00:08.8]}
53. Rxc1 {[%clk 0:01:03.9]} 53... Kxc1 {[%clk 0:00:08.7]} 54. Kg6 {[%clk
0:01:04.2]} 54... a5 {[%clk 0:00:07.2]} 55. Kg7 {[%clk 0:01:04.4]} 55... Rxf6
{[%clk 0:00:06.3]} 56. Kxf6 {[%clk 0:01:04.2]} 56... Kb2 {[%clk 0:00:06.3]} 57.
Ke5 {[%clk 0:01:04.4]} 57... Kb3 {[%clk 0:00:06.1]} 58. Kd4 {[%clk 0:01:04.8]}
58... Kxa4 {[%clk 0:00:05.9]} 59. Kc3 {[%clk 0:01:05]} 59... Ka3 {[%clk
0:00:04.6]} 60. Kc2 {[%clk 0:01:04.4]} 60... Ka2 {[%clk 0:00:04.2]} 61. Kc1
{[%clk 0:01:03.9]} 61... a4 {[%clk 0:00:04.4]} 62. Kc2 {[%clk 0:01:03.7]} 62...
a3 {[%clk 0:00:04.6]} 63. Kc1 {[%clk 0:01:03.4]} 63... Ka1 {[%clk 0:00:04.7]}
64. Kc2 {[%clk 0:01:03.5]} 64... a2 {[%clk 0:00:04.9]} 65. Kc1 {[%clk
0:01:03.7]} 1/2-1/2

[Event "Betsys MČR v online bleskovém šachu 2021"]
[Site "Chess.com"]
[Date "2021.04.17"]
[Round "5"]
[White "Honza_13"]
[Black "czlolcz"]
[Result "1-0"]
[WhiteElo "1958"]
[BlackElo "2182"]
[TimeControl "180+1"]
[EndTime "9:47:54 PDT"]
[Termination "Uživatel Honza_13 zvítězil na čas"]

1. Nf3 {[%clk 0:02:55.1]} 1... Nf6 {[%clk 0:02:52.6]} 2. g3 {[%clk 0:02:49.9]}
2... g6 {[%clk 0:02:51.7]} 3. b3 {[%clk 0:02:47.4]} 3... Bg7 {[%clk 0:02:51.2]}
4. Bb2 {[%clk 0:02:46.8]} 4... O-O {[%clk 0:02:52.1]} 5. Bg2 {[%clk 0:02:45.8]}
5... a5 {[%clk 0:02:50.1]} 6. O-O {[%clk 0:02:42.7]} 6... a4 {[%clk 0:02:49.7]}
7. d4 {[%clk 0:02:40.8]} 7... d5 {[%clk 0:02:41.9]} 8. c4 {[%clk 0:02:33.3]}
8... axb3 {[%clk 0:02:40.6]} 9. axb3 {[%clk 0:02:32.3]} 9... Rxa1 {[%clk
0:02:41.5]} 10. Bxa1 {[%clk 0:02:33.1]} 10... c6 {[%clk 0:02:37.7]} 11. Nc3
{[%clk 0:02:26.2]} 11... Na6 {[%clk 0:02:22.5]} 12. Ne5 {[%clk 0:02:12.4]} 12...
Bf5 {[%clk 0:02:09.9]} 13. e3 {[%clk 0:01:29.8]} 13... e6 {[%clk 0:01:59.5]} 14.
Bb2 {[%clk 0:01:26.6]} 14... Nb4 {[%clk 0:01:41]} 15. Qa1 {[%clk 0:01:03.4]}
15... Qa8 {[%clk 0:01:31.6]} 16. Qc1 {[%clk 0:00:36.8]} 16... Nd3 {[%clk
0:01:03]} 17. Nxd3 {[%clk 0:00:33.2]} 17... Bxd3 {[%clk 0:01:03.9]} 18. Rd1
{[%clk 0:00:32.1]} 18... dxc4 {[%clk 0:01:03.3]} 19. bxc4 {[%clk 0:00:18.7]}
19... Bxc4 {[%clk 0:01:04.2]} 20. Ba3 {[%clk 0:00:18.6]} 20... Re8 {[%clk
0:00:59.3]} 21. Bc5 {[%clk 0:00:17.8]} 21... Qa6 {[%clk 0:00:46.1]} 22. Qb2
{[%clk 0:00:17]} 22... Ra8 {[%clk 0:00:38.7]} 23. Rc1 {[%clk 0:00:11.5]} 23...
Nd5 {[%clk 0:00:34]} 24. Ne4 {[%clk 0:00:09.5]} 24... b5 {[%clk 0:00:26.8]} 25.
Nd6 {[%clk 0:00:08.4]} 25... Qa2 {[%clk 0:00:23.7]} 26. Qxa2 {[%clk 0:00:04.6]}
26... Rxa2 {[%clk 0:00:24.6]} 27. Nxc4 {[%clk 0:00:03.8]} 27... bxc4 {[%clk
0:00:25]} 28. Rxc4 {[%clk 0:00:03.6]} 28... Ra1+ {[%clk 0:00:22.9]} 29. Bf1
{[%clk 0:00:03.7]} 29... Nf6 {[%clk 0:00:18.3]} 30. Kg2 {[%clk 0:00:03.3]} 30...
Ne4 {[%clk 0:00:15.9]} 31. Bd3 {[%clk 0:00:03.1]} 31... Nd2 {[%clk 0:00:14.6]}
32. Rc2 {[%clk 0:00:02.9]} 32... Nb3 {[%clk 0:00:14.3]} 33. Rc3 {[%clk
0:00:01.5]} 33... Nxc5 {[%clk 0:00:08.8]} 34. Rxc5 {[%clk 0:00:01.4]} 34... Ra3
{[%clk 0:00:07.8]} 35. Be4 {[%clk 0:00:01.3]} 35... f5 {[%clk 0:00:06]} 36. Bxc6
{[%clk 0:00:01.6]} 36... g5 {[%clk 0:00:04.2]} 37. Bd7 {[%clk 0:00:01.7]} 37...
Kf7 {[%clk 0:00:04]} 38. Rc7 {[%clk 0:00:02.2]} 38... Kf6 {[%clk 0:00:04.3]} 39.
Be8 {[%clk 0:00:01.9]} 1-0

[Event "Betsys MČR v online bleskovém šachu 2021"]
[Site "Chess.com"]
[Date "2021.04.17"]
[Round "5"]
[White "pavelchrz"]
[Black "Lukuluss88"]
[Result "0-1"]
[WhiteElo "1700"]
[BlackElo "2014"]
[TimeControl "180+1"]
[EndTime "9:47:56 PDT"]
[Termination "Uživatel Lukuluss88 zvítězil na čas"]

1. e4 {[%clk 0:02:53.2]} 1... d5 {[%clk 0:02:58.2]} 2. exd5 {[%clk 0:02:52.4]}
2... Qxd5 {[%clk 0:02:58.1]} 3. Nc3 {[%clk 0:02:53]} 3... Qa5 {[%clk 0:02:58]}
4. b4 {[%clk 0:02:53.1]} 4... Qe5+ {[%clk 0:02:48.3]} 5. Be2 {[%clk 0:02:44.6]}
5... e6 {[%clk 0:02:47.8]} 6. Nf3 {[%clk 0:02:41.5]} 6... Qf6 {[%clk 0:02:47.2]}
7. Bb2 {[%clk 0:02:36.6]} 7... Qd8 {[%clk 0:02:38.3]} 8. b5 {[%clk 0:02:17.3]}
8... Nf6 {[%clk 0:02:37]} 9. d4 {[%clk 0:02:15.4]} 9... c6 {[%clk 0:02:33.8]}
10. Ne5 {[%clk 0:02:11.5]} 10... cxb5 {[%clk 0:02:22.9]} 11. Nxb5 {[%clk
0:02:09.5]} 11... Bd7 {[%clk 0:02:19]} 12. O-O {[%clk 0:02:05.8]} 12... a6
{[%clk 0:02:14.7]} 13. Nc3 {[%clk 0:01:55.9]} 13... Bd6 {[%clk 0:02:10.9]} 14.
Bf3 {[%clk 0:01:54.6]} 14... Qc8 {[%clk 0:01:59.6]} 15. Rb1 {[%clk 0:01:46.2]}
15... Nc6 {[%clk 0:01:54.9]} 16. Nxd7 {[%clk 0:01:34.6]} 16... Qxd7 {[%clk
0:01:51.9]} 17. Ne4 {[%clk 0:01:35]} 17... Nxe4 {[%clk 0:01:45.5]} 18. Bxe4
{[%clk 0:01:34.3]} 18... O-O {[%clk 0:01:43.9]} 19. Qh5 {[%clk 0:01:33.3]} 19...
g6 {[%clk 0:01:40.7]} 20. Qh6 {[%clk 0:01:33.1]} 20... f5 {[%clk 0:01:32.3]} 21.
d5 {[%clk 0:01:11.1]} 21... Ne5 {[%clk 0:00:50.5]} 22. dxe6 {[%clk 0:01:09.9]}
22... Qxe6 {[%clk 0:00:50.4]} 23. Bxb7 {[%clk 0:01:09.3]} 23... Ra7 {[%clk
0:00:48.2]} 24. f4 {[%clk 0:00:57.5]} 24... Rxb7 {[%clk 0:00:37.7]} 25. fxe5
{[%clk 0:00:55.2]} 25... Bc5+ {[%clk 0:00:31.7]} 26. Kh1 {[%clk 0:00:55]} 26...
Rfb8 {[%clk 0:00:31.4]} 27. Qc1 {[%clk 0:00:28]} 27... Qxa2 {[%clk 0:00:29.8]}
28. e6 {[%clk 0:00:17.7]} 28... Rxb2 {[%clk 0:00:27.8]} 29. Rxb2 {[%clk
0:00:16.8]} 29... Qxb2 {[%clk 0:00:27.6]} 30. Qh6 {[%clk 0:00:16.2]} 30... Qg7
{[%clk 0:00:26.5]} 31. Qg5 {[%clk 0:00:15.1]} 31... Be7 {[%clk 0:00:25.6]} 32.
Qe3 {[%clk 0:00:13.4]} 32... Re8 {[%clk 0:00:22.8]} 33. h4 {[%clk 0:00:12.5]}
33... Qf6 {[%clk 0:00:21.2]} 34. h5 {[%clk 0:00:12.1]} 34... Qh4+ {[%clk
0:00:21]} 35. Kg1 {[%clk 0:00:10]} 35... g5 {[%clk 0:00:19.6]} 36. h6 {[%clk
0:00:09]} 36... f4 {[%clk 0:00:18.1]} 37. Qe4 {[%clk 0:00:08]} 37... Bc5+ {[%clk
0:00:18]} 38. Rf2 {[%clk 0:00:05]} 38... Bxf2+ {[%clk 0:00:18]} 39. Kf1 {[%clk
0:00:04.8]} 39... Qh1+ {[%clk 0:00:17.9]} 40. Kxf2 {[%clk 0:00:04.6]} 40... Qh4+
{[%clk 0:00:17.7]} 41. Kf1 {[%clk 0:00:03.1]} 41... Qh1+ {[%clk 0:00:16.3]} 42.
Kf2 {[%clk 0:00:02.7]} 42... Qh4+ {[%clk 0:00:13.9]} 43. Kf1 {[%clk 0:00:01.4]}
43... Qg3 {[%clk 0:00:13.5]} 0-1

[Event "Betsys MČR v online bleskovém šachu 2021"]
[Site "Chess.com"]
[Date "2021.04.17"]
[Round "5"]
[White "Sandokanom"]
[Black "adasmrazek"]
[Result "1-0"]
[WhiteElo "1756"]
[BlackElo "1307"]
[TimeControl "180+1"]
[EndTime "9:47:56 PDT"]
[Termination "Uživatel Sandokanom zvítězil po vzdání soupeře"]

1. c4 {[%clk 0:03:00.9]} 1... e5 {[%clk 0:02:57.7]} 2. Nf3 {[%clk 0:03:01]} 2...
Nc6 {[%clk 0:02:53.6]} 3. Nc3 {[%clk 0:03:00.4]} 3... Nf6 {[%clk 0:02:52.7]} 4.
a3 {[%clk 0:03:00.5]} 4... g6 {[%clk 0:02:52.2]} 5. b4 {[%clk 0:03:00.7]} 5...
Bg7 {[%clk 0:02:52.4]} 6. b5 {[%clk 0:03:00.3]} 6... Nd4 {[%clk 0:02:50.3]} 7.
Nxe5 {[%clk 0:02:54.1]} 7... d6 {[%clk 0:02:30.2]} 8. Nf3 {[%clk 0:02:53.1]}
8... Nxf3+ {[%clk 0:02:28.3]} 9. gxf3 {[%clk 0:02:53.2]} 9... O-O {[%clk
0:02:29.2]} 10. e4 {[%clk 0:02:52.9]} 10... Bd7 {[%clk 0:02:23.5]} 11. d4 {[%clk
0:02:52.4]} 11... Re8 {[%clk 0:02:20.9]} 12. Bg2 {[%clk 0:02:47.6]} 12... c6
{[%clk 0:02:18.7]} 13. bxc6 {[%clk 0:02:42.6]} 13... bxc6 {[%clk 0:02:19.6]} 14.
O-O {[%clk 0:02:42.7]} 14... Rb8 {[%clk 0:02:19.9]} 15. Be3 {[%clk 0:02:39.6]}
15... Qa5 {[%clk 0:02:16.9]} 16. Qc2 {[%clk 0:02:33.8]} 16... d5 {[%clk
0:02:07.2]} 17. cxd5 {[%clk 0:02:30.5]} 17... cxd5 {[%clk 0:02:08.1]} 18. e5
{[%clk 0:02:25.8]} 18... Nh5 {[%clk 0:02:01.6]} 19. Ne2 {[%clk 0:02:20.2]} 19...
Rbc8 {[%clk 0:02:00.6]} 20. Qd2 {[%clk 0:02:16.1]} 20... Qxd2 {[%clk 0:01:56.4]}
21. Bxd2 {[%clk 0:02:17]} 21... Rc2 {[%clk 0:01:56.3]} 22. Rfd1 {[%clk
0:02:13.8]} 22... Rb8 {[%clk 0:01:49.3]} 23. Ng3 {[%clk 0:02:11.5]} 23... Nxg3
{[%clk 0:01:44.3]} 24. hxg3 {[%clk 0:02:12.4]} 24... Rbb2 {[%clk 0:01:44.5]} 25.
Be3 {[%clk 0:02:10.1]} 25... f6 {[%clk 0:01:32.7]} 26. f4 {[%clk 0:02:07.4]}
26... fxe5 {[%clk 0:01:27.8]} 27. fxe5 {[%clk 0:02:07.3]} 27... Be6 {[%clk
0:01:25.1]} 28. Rac1 {[%clk 0:02:01]} 28... h5 {[%clk 0:01:15]} 29. Rxc2 {[%clk
0:01:46.2]} 29... Rxc2 {[%clk 0:01:15.9]} 30. Rc1 {[%clk 0:01:46.5]} 30... Rxc1+
{[%clk 0:01:15.9]} 31. Bxc1 {[%clk 0:01:46.4]} 31... Kf7 {[%clk 0:01:14.6]} 32.
Kf1 {[%clk 0:01:38.2]} 32... Bf8 {[%clk 0:01:13.3]} 33. Ke2 {[%clk 0:01:36.7]}
33... Bg4+ {[%clk 0:01:05.6]} 34. Kd3 {[%clk 0:01:35.9]} 34... Ke6 {[%clk
0:00:53.1]} 35. Kc3 {[%clk 0:01:30.8]} 35... Be2 {[%clk 0:00:52.6]} 36. Bh3+
{[%clk 0:01:25.8]} 36... Kf7 {[%clk 0:00:37.9]} 37. a4 {[%clk 0:01:17.7]} 37...
a5 {[%clk 0:00:31.8]} 38. Bd7 {[%clk 0:01:08.1]} 38... Bb4+ {[%clk 0:00:30.4]}
39. Kc2 {[%clk 0:01:01.8]} 39... Bc4 {[%clk 0:00:25.4]} 40. Bb5 {[%clk
0:00:56.5]} 40... Bxb5 {[%clk 0:00:17.9]} 41. axb5 {[%clk 0:00:56]} 41... Ke7
{[%clk 0:00:18.8]} 42. Bd2 {[%clk 0:00:51.9]} 42... Ba3 {[%clk 0:00:15]} 43.
Bxa5 {[%clk 0:00:50.4]} 43... Kd7 {[%clk 0:00:14.2]} 44. Kd3 {[%clk 0:00:43.2]}
44... Be7 {[%clk 0:00:14.5]} 45. Ke3 {[%clk 0:00:42.5]} 45... Kc8 {[%clk
0:00:14.5]} 46. Kf4 {[%clk 0:00:39.2]} 46... Kb7 {[%clk 0:00:15.4]} 47. e6
{[%clk 0:00:34.2]} 47... Bf6 {[%clk 0:00:15.4]} 48. Bc3 {[%clk 0:00:30.8]} 48...
Kb6 {[%clk 0:00:15.7]} 49. g4 {[%clk 0:00:25.4]} 49... Kxb5 {[%clk 0:00:15.8]}
50. gxh5 {[%clk 0:00:23.5]} 50... gxh5 {[%clk 0:00:16.7]} 51. Kf5 {[%clk
0:00:21.8]} 51... Bh8 {[%clk 0:00:15.3]} 52. e7 {[%clk 0:00:20.5]} 1-0